[Event "FIDE Women's Grand Swiss 2023"]
[Site "Villa Marina, Douglas, Isle of Man, Isle Of Man"]
[Date "2023.10.30"]
[Round "6.4"]
[White "Efroimski, Marsel"]
[Black "Munguntuul, Batkhuyag"]
[Result "1/2-1/2"]
[TimeControl "40/90 + 30 + 30s/move"]
[WhiteFideId "2810964"]
[BlackFideId "4900758"]
[WhiteElo "2447"]
[BlackElo "2366"]

1. e4 {[%clk 01:30:59]} c5 {[%clk 01:30:55]} {[%emt 00:00:06]} 2. Nf3 {[%clk
01:31:25]} {[%emt 00:00:04]} e6 {[%clk 01:31:19]} {[%emt 00:00:05]} 3. d4
{[%clk 01:31:53]} {[%emt 00:00:03]} cxd4 {[%clk 01:31:44]} {[%emt 00:00:05]} 4.
Nxd4 {[%clk 01:32:21]} {[%emt 00:00:02]} Nc6 {[%clk 01:32:06]} {[%emt
00:00:07]} 5. Nc3 {[%clk 01:32:47]} {[%emt 00:00:04]} Qc7 {[%clk 01:32:31]}
{[%emt 00:00:05]} 6. Be3 {[%clk 01:33:13]} {[%emt 00:00:04]} a6 {[%clk
01:32:56]} {[%emt 00:00:06]} 7. Qf3 {[%clk 01:33:25]} {[%emt 00:00:17]} Nf6
{[%clk 01:33:11]} {[%emt 00:00:14]} 8. O-O-O {[%clk 01:33:40]} {[%emt
00:00:15]} Ne5 {[%clk 01:33:25]} {[%emt 00:00:16]} 9. Qg3 {[%clk 01:34:06]}
{[%emt 00:00:05]} b5 {[%clk 01:33:45]} {[%emt 00:00:10]} 10. f4 {[%clk
01:34:22]} {[%emt 00:00:13]} Neg4 {[%clk 01:33:57]} {[%emt 00:00:18]} 11. Bg1
{[%clk 01:34:02]} {[%emt 00:00:50]} b4 {[%clk 01:28:36]} {[%emt 00:05:51]} 12.
Na4 {[%clk 01:34:18]} {[%emt 00:00:15]} h5 {[%clk 01:28:15]} {[%emt 00:00:51]}
13. e5 {[%clk 01:34:41]} {[%emt 00:00:08]} Nd5 {[%clk 01:21:38]} {[%emt
00:07:06]} 14. h3 {[%emt 00:00:13]} Nh6 {[%clk 01:21:29]} {[%emt 00:00:30]} 15.
f5 {[%clk 01:35:32]} {[%emt 00:00:04]} Bb7 {[%clk 01:17:40]} {[%emt 00:04:19]}
16. Bd3 {[%clk 01:35:52]} {[%emt 00:00:10]} h4 {[%clk 01:07:35]} {[%emt
00:10:35]} 17. Qxh4 {[%clk 01:35:51]} {[%emt 00:00:32]} Qxe5 {[%clk 01:06:34]}
{[%emt 00:01:30]} 18. fxe6 {[%clk 01:27:58]} {[%emt 00:08:22]} dxe6 {[%clk
01:04:29]} {[%emt 00:02:36]} 19. Qe1 {[%clk 00:56:48]} {[%emt 00:31:40]} Qxe1
{[%clk 00:55:19]} {[%emt 00:09:40]} 20. Rxe1 {[%clk 00:57:17]} Ng4 {[%clk
00:54:51]} {[%emt 00:00:58]} 21. Bf5 {[%clk 00:40:29]} {[%emt 00:17:18]} Ngf6
{[%clk 00:54:03]} {[%emt 00:01:17]} 22. Nxe6 {[%clk 00:34:37]} {[%emt
00:06:22]} fxe6 {[%clk 00:50:29]} {[%emt 00:04:03]} 23. Bxe6 {[%clk 00:35:01]}
{[%emt 00:00:06]} Ne7 {[%clk 00:41:08]} {[%emt 00:09:51]} 24. Bc5 {[%clk
00:32:31]} {[%emt 00:03:01]} Rd8 {[%clk 00:29:04]} {[%emt 00:12:34]} 25. Re2
{[%clk 00:19:41]} {[%emt 00:13:20]} Rh4 {[%clk 00:27:37]} {[%emt 00:01:57]} 26.
Rhe1 {[%clk 00:15:48]} {[%emt 00:04:23]} Re4 {[%clk 00:27:52]} {[%emt
00:00:15]} 27. g4 {[%clk 00:14:48]} {[%emt 00:01:30]} Rxe2 {[%clk 00:24:45]}
{[%emt 00:03:38]} 28. Rxe2 {[%clk 00:15:17]} g6 {[%clk 00:24:57]} {[%emt
00:00:18]} 29. g5 {[%clk 00:12:09]} {[%emt 00:03:37]} Ne4 {[%clk 00:25:20]}
{[%emt 00:00:06]} 30. Bxb4 {[%clk 00:12:24]} {[%emt 00:00:15]} Nxg5 {[%clk
00:24:42]} {[%emt 00:01:08]} 31. Bc4 {[%clk 00:07:29]} {[%emt 00:05:26]} Nxh3
{[%clk 00:22:37]} {[%emt 00:02:34]} 32. b3 {[%clk 00:07:55]} {[%emt 00:00:04]}
Nf4 {[%clk 00:22:38]} {[%emt 00:00:29]} 33. Re1 {[%clk 00:08:04]} {[%emt
00:00:21]} Nfd5 {[%clk 00:21:45]} {[%emt 00:01:23]} 34. Bd2 {[%clk 00:07:57]}
{[%emt 00:00:36]} Bg7 {[%clk 00:17:47]} {[%emt 00:04:28]} 35. Nc5 {[%clk
00:08:10]} {[%emt 00:00:17]} Bc8 {[%clk 00:17:48]} {[%emt 00:00:29]} 36. Nxa6
{[%clk 00:06:36]} {[%emt 00:02:04]} Bxa6 {[%clk 00:16:11]} {[%emt 00:02:07]} 37.
Bxa6 {[%clk 00:07:05]} {[%emt 00:00:02]} Nc3 {[%clk 00:16:07]} {[%emt
00:00:34]} 38. a3 {[%clk 00:02:18]} {[%emt 00:05:17]} Ra8 {[%clk 00:07:47]}
{[%emt 00:08:50]} 39. Re6 {[%clk 00:01:22]} {[%emt 00:01:27]} Kd7 {[%clk
00:06:18]} {[%emt 00:01:58]} 40. Rb6 {[%clk 00:01:43]} {[%emt 00:00:08]} Bd4
{[%clk 00:02:46]} {[%emt 00:04:02]} 41. Rb7+ {[%clk 00:28:57]} {[%emt
00:03:16]} Kc6 {[%clk 00:31:36]} {[%emt 00:01:39]} 42. Rxe7 {[%clk 00:26:53]}
{[%emt 00:02:34]} Rxa6 {[%clk 00:32:03]} {[%emt 00:00:03]} 43. Re6+ {[%clk
00:16:55]} {[%emt 00:10:29]} Kb7 {[%clk 00:32:07]} {[%emt 00:00:26]} 44. Rxa6
{[%clk 00:15:45]} {[%emt 00:01:40]} Kxa6 {[%clk 00:32:35]} {[%emt 00:00:02]} 45.
Bxc3 {[%clk 00:11:18]} {[%emt 00:04:57]} Bxc3 {[%clk 00:33:02]} {[%emt
00:00:03]} 46. Kd1 {[%clk 00:11:45]} {[%emt 00:00:03]} Kb5 {[%clk 00:31:47]}
{[%emt 00:01:45]} 47. Ke2 {[%clk 00:12:12]} {[%emt 00:00:03]} Kc6 {[%clk
00:26:32]} {[%emt 00:05:46]} 48. Kd3 {[%clk 00:12:39]} {[%emt 00:00:04]} Bb2
{[%clk 00:26:45]} {[%emt 00:00:17]} 49. a4 {[%clk 00:13:05]} {[%emt 00:00:04]}
Kd5 {[%clk 00:23:03]} {[%emt 00:04:11]} 50. c4+ {[%clk 00:11:36]} {[%emt
00:01:59]} Kc5 {[%clk 00:20:29]} {[%emt 00:03:04]} 51. Ke4 {[%clk 00:12:03]}
{[%emt 00:00:04]} Bc3 {[%clk 00:20:08]} {[%emt 00:00:50]} 52. Kf4 {[%clk
00:12:27]} {[%emt 00:00:05]} Bd2+ {[%clk 00:20:32]} {[%emt 00:00:07]} 53. Ke5
{[%clk 00:12:54]} {[%emt 00:00:03]} Kb4 {[%clk 00:19:31]} {[%emt 00:01:31]} 54.
Kf6 {[%clk 00:13:10]} {[%emt 00:00:14]} g5 {[%clk 00:19:51]} {[%emt 00:00:10]}
55. Kf5 {[%clk 00:13:37]} {[%emt 00:00:03]} Kxb3 {[%clk 00:19:42]} {[%emt
00:00:39]} 56. a5 {[%clk 00:12:40]} {[%emt 00:01:27]} Kxc4 {[%clk 00:20:00]}
{[%emt 00:00:12]} 57. a6 {[%clk 00:13:07]} {[%emt 00:00:03]} Be3 {[%clk
00:20:20]} {[%emt 00:00:09]} 58. a7 {[%clk 00:13:34]} {[%emt 00:00:04]} Bxa7
{[%clk 00:20:48]} {[%emt 00:00:02]} 59. Kxg5 {[%clk 00:14:00]} {[%emt
00:00:04]} 1/2-1/2

[Event "FIDE Women's Grand Swiss 2023"]
[Site "Villa Marina, Douglas, Isle of Man, Isle Of Man"]
[Date "2023.10.30"]
[Round "6.5"]
[White "Stefanova, Antoaneta"]
[Black "Bulmaga, Irina"]
[Result "1-0"]
[TimeControl "40/90 + 30 + 30s/move"]
[WhiteFideId "2902257"]
[BlackFideId "13903063"]
[WhiteElo "2424"]
[BlackElo "2423"]

1. e4 {[%clk 01:30:54]} {[%emt 00:00:05]} e5 {[%clk 01:30:33]} {[%emt
00:00:27]} 2. Nf3 {[%clk 01:31:18]} {[%emt 00:00:06]} Nc6 {[%clk 01:30:57]}
{[%emt 00:00:06]} 3. g3 {[%clk 01:31:41]} {[%emt 00:00:07]} Nf6 {[%clk
01:29:59]} {[%emt 00:01:27]} 4. d3 {[%clk 01:30:05]} {[%emt 00:02:07]} d5
{[%clk 01:25:29]} {[%emt 00:04:59]} 5. exd5 {[%clk 01:30:06]} {[%emt 00:00:30]}
Nxd5 {[%clk 01:24:39]} {[%emt 00:01:20]} 6. Bg2 {[%clk 01:28:39]} {[%emt
00:01:56]} Be7 {[%clk 01:22:10]} {[%emt 00:02:59]} 7. O-O {[%clk 01:24:59]}
{[%emt 00:04:10]} O-O {[%clk 01:22:11]} {[%emt 00:00:29]} 8. Re1 {[%clk
01:23:28]} {[%emt 00:02:01]} Bf6 {[%clk 01:17:38]} {[%emt 00:05:03]} 9. Nc3
{[%clk 01:20:29]} {[%emt 00:03:29]} Nxc3 {[%clk 01:12:40]} {[%emt 00:05:28]} 10.
bxc3 {[%clk 01:16:56]} {[%emt 00:04:03]} e4 {[%clk 01:09:29]} {[%emt 00:03:41]}
11. Rxe4 {[%clk 01:16:41]} {[%emt 00:00:45]} Bxc3 {[%clk 01:09:00]} {[%emt
00:00:59]} 12. Rb1 {[%clk 01:14:51]} {[%emt 00:02:20]} Bf5 {[%clk 01:04:01]}
{[%emt 00:05:29]} 13. Rc4 {[%clk 01:00:02]} {[%emt 00:15:20]} Bf6 {[%clk
01:03:47]} {[%emt 00:00:43]} 14. Rf4 {[%clk 00:44:46]} {[%emt 00:15:46]} Be6
{[%clk 01:00:16]} {[%emt 00:04:01]} 15. Rxb7 {[%clk 00:39:07]} {[%emt
00:06:11]} Bxa2 {[%clk 00:52:13]} {[%emt 00:08:32]} 16. c4 {[%clk 00:30:25]}
{[%emt 00:09:12]} Na5 {[%clk 00:48:07]} {[%emt 00:04:36]} 17. Rb5 {[%clk
00:23:40]} {[%emt 00:07:15]} Nxc4 {[%clk 00:44:57]} {[%emt 00:03:40]} 18. Qc2
{[%clk 00:13:02]} {[%emt 00:11:09]} Nd6 {[%clk 00:43:17]} {[%emt 00:02:09]} 19.
Rc5 {[%clk 00:11:32]} {[%emt 00:02:00]} Be6 {[%clk 00:42:14]} {[%emt 00:01:33]}
20. Nd4 {[%clk 00:11:37]} {[%emt 00:00:25]} Bxd4 {[%clk 00:38:52]} {[%emt
00:03:52]} 21. Rxd4 {[%clk 00:12:03]} {[%emt 00:00:05]} Rc8 {[%clk 00:33:57]}
{[%emt 00:05:25]} 22. h4 {[%clk 00:08:33]} {[%emt 00:04:00]} Qe7 {[%clk
00:33:01]} {[%emt 00:01:25]} 23. Bg5 {[%clk 00:06:16]} {[%emt 00:02:47]} f6
{[%clk 00:31:47]} {[%emt 00:01:44]} 24. Bf4 {[%clk 00:06:44]} {[%emt 00:00:02]}
Rfd8 {[%clk 00:27:50]} {[%emt 00:04:26]} 25. Ra4 {[%clk 00:05:44]} {[%emt
00:01:31]} Nf5 {[%clk 00:15:30]} {[%emt 00:12:50]} 26. Bb7 {[%clk 00:05:05]}
{[%emt 00:01:09]} Nd4 {[%clk 00:05:58]} {[%emt 00:10:02]} 27. Rxd4 {[%clk
00:05:28]} {[%emt 00:00:07]} Rxd4 {[%clk 00:06:24]} {[%emt 00:00:04]} 28. Bxc8
{[%clk 00:05:36]} {[%emt 00:00:23]} Bxc8 {[%clk 00:06:46]} {[%emt 00:00:07]} 29.
Rxc7 {[%clk 00:05:35]} {[%emt 00:00:31]} Bd7 {[%clk 00:06:37]} {[%emt
00:00:38]} 30. Be3 {[%clk 00:03:47]} {[%emt 00:02:19]} Rd5 {[%clk 00:05:26]}
{[%emt 00:01:41]} 31. Qb3 {[%clk 00:02:37]} {[%emt 00:01:40]} Qe6 {[%clk
00:05:35]} {[%emt 00:00:21]} 32. Rxa7 {[%clk 00:01:42]} {[%emt 00:01:26]} h5
{[%clk 00:05:37]} {[%emt 00:00:28]} 33. Ra6 {[%clk 00:01:26]} {[%emt 00:00:46]}
Qf7 {[%clk 00:03:35]} {[%emt 00:02:32]} 34. d4 {[%clk 00:00:54]} {[%emt
00:01:03]} Kh7 {[%clk 00:02:30]} {[%emt 00:01:34]} 35. Ra7 {[%clk 00:01:01]}
{[%emt 00:00:24]} Qe6 {[%clk 00:01:54]} {[%emt 00:01:05]} 36. Qc2+ {[%clk
00:01:18]} {[%emt 00:00:14]} Qf5 {[%clk 00:01:31]} {[%emt 00:00:53]} 37. Qxf5+
{[%clk 00:00:48]} {[%emt 00:01:00]} Bxf5 {[%clk 00:01:58]} {[%emt 00:00:04]} 38.
Kf1 {[%clk 00:01:05]} {[%emt 00:00:12]} Rd7 {[%clk 00:01:52]} {[%emt 00:00:36]}
39. Ra5 {[%clk 00:01:08]} {[%emt 00:00:28]} Kg6 {[%clk 00:02:09]} {[%emt
00:00:12]} 40. Ke2 {[%clk 00:01:15]} {[%emt 00:00:24]} Be4 {[%clk 00:02:22]}
{[%emt 00:00:17]} 41. f3 {[%clk 00:28:07]} {[%emt 00:03:38]} Bd5 {[%clk
00:31:50]} {[%emt 00:01:01]} 42. g4 {[%clk 00:25:07]} {[%emt 00:03:30]} hxg4
{[%clk 00:30:11]} {[%emt 00:02:09]} 43. fxg4 {[%clk 00:24:48]} {[%emt
00:00:50]} Be6 {[%clk 00:30:12]} {[%emt 00:00:29]} 44. Kf3 {[%clk 00:24:45]}
{[%emt 00:00:32]} Kf7 {[%clk 00:30:10]} {[%emt 00:00:32]} 45. g5 {[%clk
00:23:32]} {[%emt 00:01:44]} fxg5 {[%clk 00:30:18]} {[%emt 00:00:22]} 46. Rxg5
{[%clk 00:23:29]} {[%emt 00:00:33]} Rd5 {[%clk 00:29:58]} {[%emt 00:00:50]} 47.
Rg1 {[%clk 00:22:53]} {[%emt 00:01:06]} Rf5+ {[%clk 00:28:07]} {[%emt
00:02:21]} 48. Ke4 {[%clk 00:22:46]} {[%emt 00:00:37]} Rb5 {[%clk 00:27:50]}
{[%emt 00:00:47]} 49. Rf1+ {[%clk 00:21:46]} {[%emt 00:01:30]} Ke7 {[%clk
00:26:03]} {[%emt 00:02:16]} 50. Bg5+ {[%clk 00:21:42]} {[%emt 00:00:35]} Ke8
{[%clk 00:25:53]} {[%emt 00:00:40]} 51. Ra1 {[%clk 00:21:08]} {[%emt 00:01:03]}
Bf5+ {[%clk 00:24:50]} {[%emt 00:01:33]} 52. Kf4 {[%clk 00:20:53]} {[%emt
00:00:45]} g6 {[%clk 00:22:21]} {[%emt 00:02:58]} 53. Bf6 {[%clk 00:16:10]}
{[%emt 00:05:13]} Kf7 {[%clk 00:17:32]} {[%emt 00:05:20]} 54. Be5 {[%clk
00:15:26]} {[%emt 00:01:12]} Rb1 {[%clk 00:16:43]} {[%emt 00:01:20]} 55. Ra7+
{[%clk 00:15:24]} {[%emt 00:00:32]} Ke6 {[%clk 00:16:48]} {[%emt 00:00:25]} 56.
Ra6+ {[%clk 00:15:31]} {[%emt 00:00:23]} Ke7 {[%clk 00:13:12]} {[%emt
00:04:06]} 57. Kg5 {[%clk 00:07:49]} {[%emt 00:08:12]} Be4 {[%clk 00:13:16]}
{[%emt 00:00:27]} 58. Kh6 {[%clk 00:07:02]} {[%emt 00:01:15]} Rf1 {[%clk
00:11:37]} {[%emt 00:02:11]} 59. Ra7+ {[%clk 00:07:09]} {[%emt 00:00:24]} Ke6
{[%clk 00:11:00]} {[%emt 00:01:06]} 60. Kg7 {[%clk 00:07:15]} {[%emt 00:00:23]}
Rh1 {[%clk 00:10:51]} {[%emt 00:00:39]} 61. Bf6 {[%clk 00:06:13]} {[%emt
00:01:31]} Bf5 {[%clk 00:08:48]} {[%emt 00:02:34]} 62. Re7+ {[%clk 00:05:42]}
{[%emt 00:01:01]} Kd6 {[%clk 00:09:09]} {[%emt 00:00:09]} 63. Re5 {[%clk
00:06:04]} {[%emt 00:00:07]} Rf1 {[%clk 00:08:43]} {[%emt 00:00:57]} 64. Be7+
{[%clk 00:05:48]} {[%emt 00:00:45]} Kd7 {[%clk 00:09:03]} {[%emt 00:00:11]} 65.
d5 {[%clk 00:05:32]} {[%emt 00:00:46]} Rf4 {[%clk 00:05:27]} {[%emt 00:04:05]}
66. d6 {[%clk 00:04:44]} {[%emt 00:01:16]} Re4 {[%clk 00:05:42]} {[%emt
00:00:18]} 67. Ra5 {[%clk 00:04:17]} {[%emt 00:00:57]} Rf4 {[%clk 00:04:35]}
{[%emt 00:01:37]} 68. Ra7+ {[%clk 00:04:14]} {[%emt 00:00:33]} Ke6 {[%clk
00:03:17]} {[%emt 00:01:48]} 69. Bf8 {[%clk 00:03:32]} {[%emt 00:01:11]} Rd4
{[%clk 00:02:56]} {[%emt 00:00:52]} 70. Rf7 {[%clk 00:01:40]} {[%emt 00:02:22]}
Bd3 {[%clk 00:02:16]} {[%emt 00:01:09]} 71. Be7 {[%clk 00:01:28]} {[%emt
00:00:43]} Rg4 {[%clk 00:01:55]} {[%emt 00:00:50]} 72. Rf3 {[%clk 00:00:56]}
{[%emt 00:01:00]} Bf5 {[%clk 00:01:20]} {[%emt 00:01:08]} 73. Re3+ {[%clk
00:01:01]} {[%emt 00:00:24]} Kd7 {[%clk 00:01:14]} {[%emt 00:00:38]} 74. Ra3
{[%clk 00:01:16]} {[%emt 00:00:15]} Rf4 {[%clk 00:01:13]} {[%emt 00:00:30]} 75.
Ra7+ {[%clk 00:01:15]} {[%emt 00:00:31]} Ke6 {[%clk 00:01:41]} {[%emt
00:00:02]} 76. Bf8 {[%clk 00:00:57]} {[%emt 00:00:49]} Rd4 {[%clk 00:02:00]}
{[%emt 00:00:10]} 77. Rf7 {[%clk 00:01:06]} {[%emt 00:00:21]} Bd3 {[%clk
00:02:09]} {[%emt 00:00:20]} 78. Be7 {[%clk 00:01:09]} {[%emt 00:00:28]} Rg4
{[%clk 00:02:25]} {[%emt 00:00:14]} 79. Kf8 {[%clk 00:00:59]} {[%emt 00:00:40]}
Kd7 {[%clk 00:01:34]} {[%emt 00:01:21]} 80. Rf2 {[%clk 00:00:48]} {[%emt
00:00:40]} Rg1 {[%clk 00:01:28]} {[%emt 00:00:36]} 81. Kg7 {[%clk 00:00:52]}
{[%emt 00:00:26]} Be4 {[%clk 00:01:04]} {[%emt 00:00:55]} 82. Rf8 {[%clk
00:00:56]} {[%emt 00:00:26]} Rd1 {[%clk 00:00:47]} {[%emt 00:00:47]} 83. Rf4
{[%clk 00:00:56]} {[%emt 00:00:30]} Re1 {[%clk 00:00:36]} {[%emt 00:00:41]} 84.
Bf8 {[%clk 00:01:12]} {[%emt 00:00:14]} Bd3 {[%clk 00:00:34]} {[%emt 00:00:32]}
85. Rf7+ {[%clk 00:01:25]} {[%emt 00:00:17]} Ke8 {[%clk 00:00:31]} {[%emt
00:00:33]} 86. d7+ {[%clk 00:01:20]} {[%emt 00:00:35]} Kd8 {[%clk 00:01:00]}
{[%emt 00:00:01]} 87. Bc5 {[%clk 00:01:08]} {[%emt 00:00:42]} Rb1 {[%clk
00:01:05]} {[%emt 00:00:25]} 88. Bd4 {[%clk 00:01:22]} {[%emt 00:00:15]} 1-0

[Event "FIDE Women's Grand Swiss 2023"]
[Site "Villa Marina, Douglas, Isle of Man, Isle Of Man"]
[Date "2023.10.30"]
[Round "6.6"]
[White "Mammadzada, Gunay"]
[Black "Milliet, Sophie"]
[Result "1/2-1/2"]
[TimeControl "40/90 + 30 + 30s/move"]
[WhiteFideId "13403729"]
[BlackFideId "623725"]
[WhiteElo "2441"]
[BlackElo "2391"]

1. Nf3 {[%clk 01:30:55]} {[%emt 00:00:04]} d5 {[%clk 01:30:46]} {[%emt
00:00:15]} 2. d4 {[%clk 01:31:16]} {[%emt 00:00:09]} Nf6 {[%clk 01:31:08]}
{[%emt 00:00:08]} 3. c4 {[%clk 01:31:41]} {[%emt 00:00:05]} e6 {[%clk
01:31:19]} {[%emt 00:00:18]} 4. g3 {[%clk 01:32:04]} {[%emt 00:00:07]} dxc4
{[%clk 01:31:10]} {[%emt 00:00:40]} 5. Bg2 {[%clk 01:32:27]} {[%emt 00:00:07]}
Bb4+ {[%clk 01:31:30]} {[%emt 00:00:09]} 6. Bd2 {[%clk 01:32:47]} {[%emt
00:00:11]} a5 {[%clk 01:31:56]} {[%emt 00:00:04]} 7. a3 {[%clk 01:33:01]}
{[%emt 00:00:16]} Bxd2+ {[%clk 01:31:52]} {[%emt 00:00:34]} 8. Nbxd2 {[%clk
01:33:08]} {[%emt 00:00:23]} b5 {[%clk 01:32:02]} {[%emt 00:00:20]} 9. b3
{[%clk 01:33:30]} {[%emt 00:00:09]} cxb3 {[%clk 01:32:14]} {[%emt 00:00:18]} 10.
Qxb3 {[%clk 01:33:50]} {[%emt 00:00:09]} c6 {[%clk 01:31:31]} {[%emt 00:01:13]}
11. O-O {[%clk 01:32:35]} {[%emt 00:01:45]} O-O {[%clk 01:31:54]} {[%emt
00:00:08]} 12. Qb2 {[%clk 01:30:50]} {[%emt 00:02:15]} Bb7 {[%clk 01:30:07]}
{[%emt 00:02:17]} 13. Rfc1 {[%clk 01:23:13]} {[%emt 00:08:07]} Nbd7 {[%clk
01:29:46]} {[%emt 00:00:52]} 14. Rc2 {[%clk 01:06:53]} {[%emt 00:16:51]} Qe7
{[%clk 01:26:36]} {[%emt 00:03:39]} 15. Ne5 {[%clk 01:02:23]} {[%emt 00:05:00]}
Nxe5 {[%clk 01:25:42]} {[%emt 00:01:24]} 16. dxe5 {[%clk 01:01:21]} {[%emt
00:01:33]} Nd5 {[%clk 01:25:58]} {[%emt 00:00:14]} 17. Ne4 {[%clk 00:59:57]}
{[%emt 00:01:55]} Rad8 {[%clk 01:20:21]} {[%emt 00:06:06]} 18. Nc5 {[%clk
00:56:08]} {[%emt 00:04:19]} Ba8 {[%clk 01:19:47]} {[%emt 00:01:04]} 19. Nb3
{[%clk 00:52:42]} {[%emt 00:03:56]} Qc7 {[%clk 01:10:09]} {[%emt 00:10:08]} 20.
e4 {[%clk 00:42:34]} {[%emt 00:10:38]} Ne7 {[%clk 00:59:27]} {[%emt 00:11:11]}
21. Qc3 {[%clk 00:40:23]} {[%emt 00:02:42]} a4 {[%clk 00:55:29]} {[%emt
00:04:28]} 22. Nc5 {[%clk 00:38:50]} {[%emt 00:02:02]} Nc8 {[%clk 00:51:02]}
{[%emt 00:04:57]} 23. Na6 {[%clk 00:26:53]} {[%emt 00:12:26]} Qa7 {[%clk
00:50:25]} {[%emt 00:01:08]} 24. Nb4 {[%clk 00:26:27]} {[%emt 00:00:55]} Nb6
{[%clk 00:50:25]} {[%emt 00:00:31]} 25. Qc5 {[%clk 00:25:32]} {[%emt 00:01:24]}
Qb8 {[%clk 00:49:20]} {[%emt 00:01:36]} 26. Na6 {[%clk 00:15:27]} {[%emt
00:10:36]} Qb7 {[%clk 00:48:42]} {[%emt 00:01:07]} 27. Nb4 {[%clk 00:15:41]}
{[%emt 00:00:17]} Qb8 {[%clk 00:33:08]} {[%emt 00:16:04]} 28. Na6 {[%clk
00:15:52]} {[%emt 00:00:19]} Qb7 {[%clk 00:33:31]} {[%emt 00:00:07]} 29. Nb4
{[%clk 00:16:17]} {[%emt 00:00:04]} Qb8 {[%clk 00:26:45]} {[%emt 00:07:17]} 30.
Na6 {[%clk 00:15:06]} {[%emt 00:01:42]} Qb7 {[%clk 00:27:10]} {[%emt 00:00:05]}
1/2-1/2